[Event "Mistrovství Čech mládeže 2023 - HD14"]
[Site "Harrachov, Czech Republic"]
[Date "2023.10.22"]
[Round "2.1"]
[White "Sboev, Kirill"]
[Black "Váňa, Jan"]
[Result "0-1"]
[TimeControl "90m + 30s"]
[WhiteElo "1556"]
[BlackElo "1969"]

1. d4 {[%clk 01:30:56]} {[%emt 00:00:03]} Nf6 {[%clk 01:30:56]} {[%emt
00:00:04]} 2. Nf3 {[%clk 01:31:10]} {[%emt 00:00:17]} e6 {[%clk 01:31:14]}
{[%emt 00:00:12]} 3. Bf4 {[%clk 01:31:28]} {[%emt 00:00:12]} c5 {[%clk
01:31:15]} {[%emt 00:00:29]} 4. e3 {[%clk 01:31:24]} {[%emt 00:00:34]} d5
{[%clk 01:31:13]} {[%emt 00:00:32]} 5. c3 {[%clk 01:31:20]} {[%emt 00:00:34]}
Bd6 {[%clk 01:29:52]} {[%emt 00:01:51]} 6. Bb5+ {[%clk 01:26:36]} {[%emt
00:05:14]} Nc6 {[%clk 01:27:25]} {[%emt 00:02:56]} 7. Ne5 {[%clk 01:20:53]}
{[%emt 00:06:14]} Qc7 {[%clk 01:14:09]} {[%emt 00:13:46]} 8. Qa4 {[%clk
01:11:16]} {[%emt 00:10:07]} Bd7 {[%clk 01:12:28]} {[%emt 00:02:11]} 9. Nxd7
{[%clk 01:09:17]} {[%emt 00:02:29]} Nxd7 {[%clk 01:11:05]} {[%emt 00:01:53]} 10.
Bxd6 {[%clk 01:08:32]} {[%emt 00:01:16]} Qxd6 {[%clk 01:11:25]} {[%emt
00:00:09]} 11. Bxc6 {[%clk 01:05:30]} {[%emt 00:03:34]} Qxc6 {[%clk 01:10:09]}
{[%emt 00:01:46]} 12. Qxc6 {[%clk 01:05:14]} {[%emt 00:00:46]} bxc6 {[%clk
01:10:38]} {[%emt 00:00:01]} 13. Nd2 {[%clk 01:04:48]} {[%emt 00:00:56]} Rb8
{[%clk 01:09:22]} {[%emt 00:01:46]} 14. Rb1 {[%clk 01:04:43]} {[%emt 00:00:35]}
cxd4 {[%clk 01:06:16]} {[%emt 00:03:36]} 15. cxd4 {[%clk 01:04:57]} {[%emt
00:00:16]} Ke7 {[%clk 01:05:48]} {[%emt 00:00:58]} 16. b3 {[%clk 01:04:31]}
{[%emt 00:00:56]} Rhc8 {[%clk 01:04:31]} {[%emt 00:01:46]} 17. b4 {[%clk
01:00:42]} {[%emt 00:04:20]} a5 {[%clk 01:01:05]} {[%emt 00:03:56]} 18. bxa5
{[%clk 00:53:07]} {[%emt 00:08:05]} Rxb1+ {[%clk 00:56:54]} {[%emt 00:04:40]}
19. Nxb1 {[%clk 00:53:31]} {[%emt 00:00:07]} c5 {[%clk 00:54:30]} {[%emt
00:02:54]} 20. dxc5 {[%clk 00:52:01]} {[%emt 00:02:00]} Rxc5 {[%clk 00:53:33]}
{[%emt 00:01:27]} 21. Kd2 {[%clk 00:50:18]} {[%emt 00:02:13]} Ne5 {[%clk
00:50:17]} {[%emt 00:03:45]} 22. Nc3 {[%clk 00:48:51]} {[%emt 00:01:57]} Rxa5
{[%clk 00:47:37]} {[%emt 00:03:10]} 23. Rb1 {[%clk 00:46:38]} {[%emt 00:02:43]}
Nc4+ {[%clk 00:46:22]} {[%emt 00:01:45]} 24. Kd3 {[%clk 00:45:23]} {[%emt
00:01:45]} Nd6 {[%clk 00:45:17]} {[%emt 00:01:34]} 25. a4 {[%clk 00:41:07]}
{[%emt 00:04:46]} e5 {[%clk 00:27:10]} {[%emt 00:18:37]} 26. f3 {[%clk
00:35:44]} {[%emt 00:05:53]} f5 {[%clk 00:17:49]} {[%emt 00:09:52]} 27. Rb4
{[%clk 00:30:38]} {[%emt 00:05:36]} Kd7 {[%clk 00:09:23]} {[%emt 00:08:56]} 28.
Nb5 {[%clk 00:24:23]} {[%emt 00:06:45]} Nxb5 {[%clk 00:05:36]} {[%emt
00:04:17]} 29. Rxb5 {[%clk 00:24:29]} {[%emt 00:00:24]} Rxb5 {[%clk 00:02:53]}
{[%emt 00:03:13]} 30. axb5 {[%clk 00:24:51]} {[%emt 00:00:08]} Kd6 {[%clk
00:03:06]} {[%emt 00:00:18]} 31. f4 {[%clk 00:18:53]} {[%emt 00:06:28]} exf4
{[%clk 00:03:00]} {[%emt 00:00:36]} 32. exf4 {[%clk 00:19:11]} {[%emt
00:00:11]} Kc5 {[%clk 00:03:26]} {[%emt 00:00:04]} 33. h3 {[%clk 00:18:11]}
{[%emt 00:01:30]} h5 {[%clk 00:02:26]} {[%emt 00:01:30]} 0-1

[Event "Mistrovství Čech mládeže 2023 - HD14"]
[Site "Harrachov, Czech Republic"]
[Date "2023.10.22"]
[Round "2.2"]
[White "Roubal, Matyáš"]
[Black "Bludský, Hynek"]
[Result "1-0"]
[TimeControl "90m + 30s"]
[WhiteElo "1884"]
[BlackElo "1547"]

1. e4 {[%clk 01:30:58]} {[%emt 00:00:02]} c5 {[%clk 01:30:55]} {[%emt
00:00:05]} 2. Nf3 {[%clk 01:31:23]} {[%emt 00:00:05]} Nc6 {[%clk 01:31:21]}
{[%emt 00:00:04]} 3. d4 {[%clk 01:31:34]} {[%emt 00:00:20]} cxd4 {[%clk
01:31:44]} {[%emt 00:00:07]} 4. Nxd4 {[%clk 01:31:59]} {[%emt 00:00:04]} g6
{[%clk 01:32:09]} {[%emt 00:00:06]} 5. c4 {[%clk 01:32:27]} {[%emt 00:00:02]}
Bg7 {[%clk 01:32:30]} {[%emt 00:00:08]} 6. Be3 {[%clk 01:32:53]} {[%emt
00:00:04]} Nf6 {[%clk 01:32:49]} {[%emt 00:00:11]} 7. Nc3 {[%clk 01:33:20]}
{[%emt 00:00:04]} d6 {[%clk 01:32:35]} {[%emt 00:00:44]} 8. Be2 {[%clk
01:33:33]} {[%emt 00:00:16]} O-O {[%clk 01:32:58]} {[%emt 00:00:07]} 9. O-O
{[%clk 01:33:46]} {[%emt 00:00:17]} Bd7 {[%clk 01:33:15]} {[%emt 00:00:14]} 10.
Qd2 {[%clk 01:33:05]} {[%emt 00:01:11]} Nxd4 {[%clk 01:33:29]} {[%emt
00:00:16]} 11. Bxd4 {[%clk 01:33:29]} {[%emt 00:00:06]} Bc6 {[%clk 01:33:50]}
{[%emt 00:00:09]} 12. f3 {[%clk 01:33:57]} {[%emt 00:00:03]} a5 {[%clk
01:32:12]} {[%emt 00:02:08]} 13. b3 {[%clk 01:33:46]} {[%emt 00:00:41]} Nd7
{[%clk 01:32:24]} {[%emt 00:00:18]} 14. Bf2 {[%clk 01:34:10]} {[%emt 00:00:06]}
Nc5 {[%clk 01:29:59]} {[%emt 00:02:55]} 15. Rab1 {[%clk 01:33:29]} {[%emt
00:01:11]} Qc7 {[%clk 01:19:16]} {[%emt 00:11:13]} 16. Bd1 {[%clk 01:29:37]}
{[%emt 00:04:21]} Rfc8 {[%clk 01:03:15]} {[%emt 00:16:31]} 17. Bc2 {[%clk
01:29:11]} {[%emt 00:00:57]} Bxc3 {[%clk 00:58:48]} {[%emt 00:04:57]} 18. Qxc3
{[%clk 01:29:31]} {[%emt 00:00:10]} b5 {[%clk 00:58:41]} {[%emt 00:00:37]} 19.
e5 {[%clk 01:24:36]} {[%emt 00:05:25]} Nb7 {[%clk 00:39:25]} {[%emt 00:19:45]}
20. exd6 {[%clk 01:24:12]} {[%emt 00:00:55]} Nxd6 {[%clk 00:38:35]} {[%emt
00:01:20]} 21. c5 {[%clk 01:22:51]} {[%emt 00:01:51]} Ne8 {[%clk 00:35:19]}
{[%emt 00:03:45]} 22. a3 {[%clk 01:14:29]} {[%emt 00:08:52]} Nf6 {[%clk
00:33:23]} {[%emt 00:02:26]} 23. Bg3 {[%clk 01:14:20]} {[%emt 00:00:39]} Qa7
{[%clk 00:31:37]} {[%emt 00:02:16]} 24. b4 {[%clk 01:09:19]} {[%emt 00:05:31]}
Nd5 {[%clk 00:23:26]} {[%emt 00:08:41]} 25. Qe5 {[%clk 01:07:38]} {[%emt
00:02:12]} Qd7 {[%clk 00:21:19]} {[%emt 00:02:38]} 26. Rfe1 {[%clk 01:04:12]}
{[%emt 00:03:55]} f6 {[%clk 00:19:19]} {[%emt 00:02:30]} 27. Qb2 {[%clk
01:01:45]} {[%emt 00:02:57]} Kf7 {[%clk 00:18:19]} {[%emt 00:01:30]} 28. Rbd1
{[%clk 01:00:18]} {[%emt 00:01:57]} axb4 {[%clk 00:17:57]} {[%emt 00:00:52]} 29.
axb4 {[%clk 01:00:45]} {[%emt 00:00:03]} e6 {[%clk 00:17:43]} {[%emt 00:00:43]}
30. Bb3 {[%clk 00:58:25]} {[%emt 00:02:50]} Re8 {[%clk 00:17:04]} {[%emt
00:01:09]} 31. Rd4 {[%clk 00:56:07]} {[%emt 00:02:48]} Qa7 {[%clk 00:16:19]}
{[%emt 00:01:15]} 32. Qd2 {[%clk 00:54:59]} {[%emt 00:01:38]} Kg7 {[%clk
00:16:01]} {[%emt 00:00:48]} 33. h3 {[%clk 00:51:44]} {[%emt 00:03:44]} Qa3
{[%clk 00:15:41]} {[%emt 00:00:50]} 34. Bxd5 {[%clk 00:51:32]} {[%emt
00:00:42]} exd5 {[%clk 00:15:22]} {[%emt 00:00:49]} 35. Rxe8 {[%clk 00:51:39]}
{[%emt 00:00:23]} Rxe8 {[%clk 00:15:39]} {[%emt 00:00:13]} 36. Rxd5 {[%clk
00:51:10]} {[%emt 00:00:59]} Bxd5 {[%clk 00:15:09]} {[%emt 00:01:00]} 37. Qxd5
{[%clk 00:51:35]} {[%emt 00:00:05]} Qa7 {[%clk 00:13:45]} {[%emt 00:01:54]} 38.
Kh2 {[%clk 00:51:26]} {[%emt 00:00:39]} Re7 {[%clk 00:13:10]} {[%emt 00:01:05]}
39. c6 {[%clk 00:43:21]} {[%emt 00:08:35]} Qb6 {[%clk 00:11:22]} {[%emt
00:02:19]} 40. h4 {[%clk 00:43:15]} {[%emt 00:00:36]} h5 {[%clk 00:10:40]}
{[%emt 00:01:11]} 41. Kh1 {[%clk 00:35:01]} {[%emt 00:08:45]} Ra7 {[%clk
00:10:35]} {[%emt 00:00:36]} 42. Qd6 {[%clk 00:32:57]} {[%emt 00:02:33]} Ra1+
{[%clk 00:09:24]} {[%emt 00:01:41]} 43. Kh2 {[%clk 00:33:22]} {[%emt 00:00:05]}
Qg1+ {[%clk 00:08:27]} {[%emt 00:01:27]} 44. Kh3 {[%clk 00:33:44]} {[%emt
00:00:08]} Qh1+ {[%clk 00:08:40]} {[%emt 00:00:17]} 45. Bh2 {[%clk 00:34:10]}
{[%emt 00:00:04]} Ra2 {[%clk 00:09:01]} {[%emt 00:00:09]} 46. Qe7+ {[%clk
00:33:32]} {[%emt 00:01:09]} Kh6 {[%clk 00:08:33]} {[%emt 00:00:57]} 47. Qf8+
{[%clk 00:33:58]} {[%emt 00:00:04]} Kh7 {[%clk 00:08:59]} {[%emt 00:00:04]} 48.
Qf7+ {[%clk 00:34:26]} {[%emt 00:00:03]} Kh6 {[%clk 00:08:46]} {[%emt
00:00:43]} 49. Qxa2 {[%clk 00:34:52]} {[%emt 00:00:04]} Qd1 {[%clk 00:08:24]}
{[%emt 00:00:52]} 50. Bf4+ {[%clk 00:35:07]} {[%emt 00:00:15]} g5 {[%clk
00:07:53]} {[%emt 00:01:01]} 51. hxg5+ {[%clk 00:35:32]} {[%emt 00:00:06]} fxg5
{[%clk 00:08:20]} {[%emt 00:00:03]} 52. Qe6+ {[%clk 00:35:54]} {[%emt
00:00:08]} 1-0

[Event "Mistrovství Čech mládeže 2023 - HD14"]
[Site "Harrachov, Czech Republic"]
[Date "2023.10.22"]
[Round "2.3"]
[White "Pásek, Josef"]
[Black "Migalko, Dmitriy"]
[Result "0-1"]
[TimeControl "90m + 30s"]
[WhiteElo "1555"]
[BlackElo "1842"]

1. d4 {[%clk 01:30:58]} {[%emt 00:00:01]} d5 {[%clk 01:30:37]} {[%emt
00:00:24]} 2. Nf3 {[%clk 01:31:22]} {[%emt 00:00:05]} c6 {[%clk 01:30:55]}
{[%emt 00:00:12]} 3. c4 {[%clk 01:31:45]} {[%emt 00:00:07]} e6 {[%clk
01:30:59]} {[%emt 00:00:26]} 4. Nc3 {[%clk 01:31:29]} {[%emt 00:00:46]} Nf6
{[%clk 01:31:07]} {[%emt 00:00:21]} 5. Bf4 {[%clk 01:30:48]} {[%emt 00:01:11]}
Bd6 {[%clk 01:29:23]} {[%emt 00:02:15]} 6. Bg3 {[%clk 01:30:10]} {[%emt
00:01:07]} Bxg3 {[%clk 01:27:34]} {[%emt 00:02:19]} 7. hxg3 {[%clk 01:30:28]}
{[%emt 00:00:11]} Nbd7 {[%clk 01:25:58]} {[%emt 00:02:07]} 8. e3 {[%clk
01:29:24]} {[%emt 00:01:34]} Qe7 {[%clk 01:23:37]} {[%emt 00:02:50]} 9. cxd5
{[%clk 01:23:18]} {[%emt 00:06:35]} exd5 {[%clk 01:23:07]} {[%emt 00:01:00]} 10.
a3 {[%clk 01:22:37]} {[%emt 00:01:12]} O-O {[%clk 01:19:56]} {[%emt 00:03:41]}
11. Bd3 {[%clk 01:19:31]} {[%emt 00:03:36]} b5 {[%clk 01:09:24]} {[%emt
00:11:02]} 12. b4 {[%clk 01:18:22]} {[%emt 00:01:39]} h6 {[%clk 01:04:24]}
{[%emt 00:05:30]} 13. O-O {[%clk 01:04:17]} {[%emt 00:14:35]} Nb6 {[%clk
01:01:24]} {[%emt 00:03:29]} 14. Ne5 {[%clk 00:42:45]} {[%emt 00:22:03]} Qd6
{[%clk 00:45:52]} {[%emt 00:16:01]} 15. Qc1 {[%clk 00:34:04]} {[%emt 00:09:12]}
Bb7 {[%clk 00:40:52]} {[%emt 00:05:30]} 16. Bc2 {[%clk 00:30:57]} {[%emt
00:03:38]} a5 {[%clk 00:34:26]} {[%emt 00:06:55]} 17. Qb2 {[%clk 00:30:04]}
{[%emt 00:01:22]} Nfd7 {[%clk 00:32:32]} {[%emt 00:02:25]} 18. Nxd7 {[%clk
00:29:03]} {[%emt 00:01:32]} Nc4 {[%clk 00:28:36]} {[%emt 00:04:26]} 19. Qc1
{[%clk 00:27:34]} {[%emt 00:01:58]} Qxd7 {[%clk 00:28:28]} {[%emt 00:00:38]} 20.
Bd3 {[%clk 00:26:20]} {[%emt 00:01:43]} axb4 {[%clk 00:26:45]} {[%emt
00:02:13]} 21. axb4 {[%clk 00:26:43]} {[%emt 00:00:07]} Rxa1 {[%clk 00:26:11]}
{[%emt 00:01:04]} 22. Qxa1 {[%clk 00:27:05]} {[%emt 00:00:08]} Ra8 {[%clk
00:26:20]} {[%emt 00:00:20]} 23. Qc1 {[%clk 00:27:15]} {[%emt 00:00:20]} Qd6
{[%clk 00:25:12]} {[%emt 00:01:39]} 24. Bxc4 {[%clk 00:27:36]} {[%emt
00:00:09]} dxc4 {[%clk 00:24:48]} {[%emt 00:00:55]} 25. Qb2 {[%clk 00:27:37]}
{[%emt 00:00:28]} Bc8 {[%clk 00:24:09]} {[%emt 00:01:10]} 26. Rb1 {[%clk
00:27:14]} {[%emt 00:00:53]} Bf5 {[%clk 00:23:59]} {[%emt 00:00:40]} 27. Rc1
{[%clk 00:27:03]} {[%emt 00:00:40]} Bd3 {[%clk 00:24:00]} {[%emt 00:00:28]} 28.
Re1 {[%clk 00:27:18]} {[%emt 00:00:15]} h5 {[%clk 00:20:55]} {[%emt 00:03:36]}
29. f3 {[%clk 00:25:17]} {[%emt 00:02:31]} Qxg3 {[%clk 00:20:46]} {[%emt
00:00:39]} 30. Ra1 {[%clk 00:25:37]} {[%emt 00:00:10]} Rxa1+ {[%clk 00:20:35]}
{[%emt 00:00:41]} 31. Qxa1 {[%clk 00:25:59]} {[%emt 00:00:07]} h4 {[%clk
00:20:51]} {[%emt 00:00:15]} 32. Qc1 {[%clk 00:25:23]} {[%emt 00:01:06]} h3
{[%clk 00:20:51]} {[%emt 00:00:31]} 33. Qd2 {[%clk 00:25:45]} {[%emt 00:00:08]}
hxg2 {[%clk 00:21:10]} {[%emt 00:00:11]} 34. Qf2 {[%clk 00:25:39]} {[%emt
00:00:35]} Qxf2+ {[%clk 00:19:09]} {[%emt 00:02:32]} 35. Kxf2 {[%clk 00:26:03]}
{[%emt 00:00:06]} Bf1 {[%clk 00:19:36]} {[%emt 00:00:03]} 36. Ne4 {[%clk
00:26:02]} {[%emt 00:00:31]} Kf8 {[%clk 00:18:52]} {[%emt 00:01:14]} 37. Nc3
{[%clk 00:26:09]} {[%emt 00:00:22]} Ke7 {[%clk 00:19:03]} {[%emt 00:00:19]} 38.
Kg1 {[%clk 00:25:00]} {[%emt 00:01:40]} Ke6 {[%clk 00:18:50]} {[%emt 00:00:43]}
39. Kf2 {[%clk 00:25:16]} {[%emt 00:00:13]} f5 {[%clk 00:18:31]} {[%emt
00:00:49]} 40. Kg1 {[%clk 00:23:54]} {[%emt 00:01:52]} g5 {[%clk 00:17:26]}
{[%emt 00:01:35]} 41. e4 {[%clk 00:20:14]} {[%emt 00:04:10]} fxe4 {[%clk
00:17:21]} {[%emt 00:00:34]} 42. fxe4 {[%clk 00:20:37]} {[%emt 00:00:06]} Bd3
{[%clk 00:16:31]} {[%emt 00:01:21]} 43. Kxg2 {[%clk 00:20:33]} {[%emt
00:00:34]} Bxe4+ {[%clk 00:16:52]} {[%emt 00:00:09]} 44. Kg3 {[%clk 00:19:13]}
{[%emt 00:01:49]} Bf5 {[%clk 00:16:20]} {[%emt 00:01:01]} 45. Kf3 {[%clk
00:18:52]} {[%emt 00:00:52]} Kf6 {[%clk 00:13:56]} {[%emt 00:02:55]} 46. Kg3
{[%clk 00:18:32]} {[%emt 00:00:50]} Bd7 {[%clk 00:12:51]} {[%emt 00:01:33]} 47.
Kf3 {[%clk 00:18:00]} {[%emt 00:01:04]} Kf5 {[%clk 00:12:57]} {[%emt 00:00:23]}
0-1

[Event "Mistrovství Čech mládeže 2023 - HD14"]
[Site "Harrachov, Czech Republic"]
[Date "2023.10.22"]
[Round "2.4"]
[White "Kammová, Kateřina"]
[Black "Mikulka, Martin Michael"]
[Result "1/2-1/2"]
[TimeControl "90m + 30s"]
[WhiteElo "1543"]
[BlackElo "1826"]

1. e4 {[%clk 01:30:52]} {[%emt 00:00:07]} e6 {[%clk 01:30:52]} {[%emt
00:00:08]} 2. d4 {[%clk 01:30:54]} {[%emt 00:00:28]} d5 {[%clk 01:31:17]}
{[%emt 00:00:05]} 3. exd5 {[%clk 01:30:57]} {[%emt 00:00:27]} exd5 {[%clk
01:31:41]} {[%emt 00:00:06]} 4. c4 {[%clk 01:31:06]} {[%emt 00:00:21]} Bb4+
{[%clk 01:32:02]} {[%emt 00:00:10]} 5. Nc3 {[%clk 01:30:34]} {[%emt 00:01:01]}
Nf6 {[%clk 01:32:20]} {[%emt 00:00:12]} 6. Bd3 {[%clk 01:30:21]} {[%emt
00:00:43]} dxc4 {[%clk 01:32:00]} {[%emt 00:00:51]} 7. Bxc4 {[%clk 01:29:50]}
{[%emt 00:01:01]} O-O {[%clk 01:31:59]} {[%emt 00:00:31]} 8. Nge2 {[%clk
01:29:42]} {[%emt 00:00:37]} h6 {[%clk 01:29:48]} {[%emt 00:02:41]} 9. O-O
{[%clk 01:29:22]} {[%emt 00:00:49]} Nc6 {[%clk 01:28:34]} {[%emt 00:01:45]} 10.
a3 {[%clk 01:27:28]} {[%emt 00:02:25]} Bd6 {[%clk 01:22:41]} {[%emt 00:06:22]}
11. Qc2 {[%clk 01:22:04]} {[%emt 00:05:53]} Ne7 {[%clk 01:20:37]} {[%emt
00:02:35]} 12. Nb5 {[%clk 01:11:58]} {[%emt 00:10:36]} Ned5 {[%clk 01:17:43]}
{[%emt 00:03:25]} 13. Nxd6 {[%clk 01:07:12]} {[%emt 00:05:15]} Qxd6 {[%clk
01:17:55]} {[%emt 00:00:18]} 14. Rd1 {[%clk 01:05:10]} {[%emt 00:02:30]} c6
{[%clk 01:16:25]} {[%emt 00:02:02]} 15. Ng3 {[%clk 00:59:46]} {[%emt 00:05:54]}
Re8 {[%clk 01:12:25]} {[%emt 00:04:30]} 16. Bd2 {[%clk 00:54:11]} {[%emt
00:06:06]} Be6 {[%clk 01:07:34]} {[%emt 00:05:22]} 17. Bb3 {[%clk 00:51:31]}
{[%emt 00:03:10]} Nb6 {[%clk 00:56:44]} {[%emt 00:11:20]} 18. Nf5 {[%clk
00:38:47]} {[%emt 00:13:14]} Bxf5 {[%clk 00:54:39]} {[%emt 00:02:34]} 19. Qxf5
{[%clk 00:38:22]} {[%emt 00:00:56]} Nbd5 {[%clk 00:43:23]} {[%emt 00:11:46]} 20.
Re1 {[%clk 00:30:34]} {[%emt 00:08:16]} Re7 {[%clk 00:32:01]} {[%emt 00:11:53]}
21. Rxe7 {[%clk 00:26:46]} {[%emt 00:04:17]} Nxe7 {[%clk 00:32:00]} {[%emt
00:00:32]} 22. Qd3 {[%clk 00:26:04]} {[%emt 00:01:08]} Ned5 {[%clk 00:28:37]}
{[%emt 00:03:56]} 23. Re1 {[%clk 00:23:21]} {[%emt 00:03:13]} Qd7 {[%clk
00:24:37]} {[%emt 00:04:31]} 24. h3 {[%clk 00:21:56]} {[%emt 00:01:54]} Re8
{[%clk 00:24:08]} {[%emt 00:01:00]} 25. Rxe8+ {[%clk 00:19:12]} {[%emt
00:03:14]} Qxe8 {[%clk 00:21:09]} {[%emt 00:03:28]} 26. Bc2 {[%clk 00:16:56]}
{[%emt 00:02:46]} Qd7 {[%clk 00:14:52]} {[%emt 00:06:47]} 27. Qg3 {[%clk
00:14:50]} {[%emt 00:02:35]} Qc7 {[%clk 00:12:04]} {[%emt 00:03:19]} 28. Qxc7
{[%clk 00:11:34]} {[%emt 00:03:45]} Nxc7 {[%clk 00:12:29]} {[%emt 00:00:05]} 29.
Kf1 {[%clk 00:11:25]} {[%emt 00:00:39]} Nfd5 {[%clk 00:12:03]} {[%emt
00:00:57]} 30. g3 {[%clk 00:10:57]} {[%emt 00:00:58]} Nb5 {[%clk 00:09:50]}
{[%emt 00:02:44]} 31. Be3 {[%clk 00:09:52]} {[%emt 00:01:35]} Nxe3+ {[%clk
00:09:48]} {[%emt 00:00:32]} 32. fxe3 {[%clk 00:10:17]} {[%emt 00:00:05]} Nd6
{[%clk 00:10:05]} {[%emt 00:00:13]} 33. Bd3 {[%clk 00:10:05]} {[%emt 00:00:42]}
f5 {[%clk 00:08:40]} {[%emt 00:01:55]} 34. Ke2 {[%clk 00:07:42]} {[%emt
00:02:52]} Kf7 {[%clk 00:08:17]} {[%emt 00:00:53]} 35. Kf3 {[%clk 00:05:52]}
{[%emt 00:02:20]} Kf6 {[%clk 00:08:08]} {[%emt 00:00:39]} 36. g4 {[%clk
00:05:05]} {[%emt 00:01:17]} b6 {[%clk 00:02:51]} {[%emt 00:05:47]} 37. b4
{[%clk 00:03:18]} {[%emt 00:02:18]} Ke6 {[%clk 00:02:22]} {[%emt 00:00:59]} 38.
Bxf5+ {[%clk 00:02:41]} {[%emt 00:01:07]} Nxf5 {[%clk 00:02:46]} {[%emt
00:00:06]} 39. gxf5+ {[%clk 00:03:04]} {[%emt 00:00:07]} Kxf5 {[%clk 00:03:10]}
{[%emt 00:00:06]} 40. e4+ {[%clk 00:03:12]} {[%emt 00:00:22]} Kf6 {[%clk
00:03:09]} {[%emt 00:00:32]} 41. h4 {[%clk 00:02:37]} {[%emt 00:01:04]} g6
{[%clk 00:03:15]} {[%emt 00:00:24]} 42. a4 {[%clk 00:02:03]} {[%emt 00:01:05]}
a5 {[%clk 00:02:31]} {[%emt 00:01:15]} 43. bxa5 {[%clk 00:02:12]} {[%emt
00:00:21]} bxa5 {[%clk 00:02:56]} {[%emt 00:00:04]} 44. Kg4 {[%clk 00:01:49]}
{[%emt 00:00:52]} Ke6 {[%clk 00:02:38]} {[%emt 00:00:48]} 45. Kf4 {[%clk
00:00:53]} {[%emt 00:01:26]} 1/2-1/2